Cogmind - Beta 11.1 @@@ ROGUE MODE // 2022.06.23 @ 13:10:11 Player: Demise Result: Destroyed by G-47 Trooper with Particle Gun Performance ------------- Evolutions (2) 1000 Regions Visited (9) 1800 Robots Destroyed (277) 1385 Value Destroyed (7907) 7907 Prototype IDs (26) 520 Alien Tech Used (0) 0 Bonus (2795) 2795 TOTAL SCORE: 15407 Bonus ------- High Alert Combat Kills 2156 Follower Combat Kills 250 Entered Garrisons 200 Used RIF Installer 500 Friendly Fire -311 Cogmind --------- Core Integrity 0/550 Matter 179/300 Energy 147/150 System Corruption 0% Temperature Cool (18) Movement Rolling (116) Ox2 Location -8/Materials Parts ------- > --- POWER (1) -------- Light Angular Momentum Engine > --- PROPULSION (4) --- Wheel Armored Wheel Armored Wheel > --- UTILITY (4) ------ Huge Storage Unit Structural Scanner Core Shielding Improved Propulsion Shielding > --- WEAPON (2) ------- Missile Launcher > --- INVENTORY (25) --- Improved VTOL Module Improved VTOL Module Improved VTOL Module Improved VTOL Module Improved VTOL Module Xenon Bombardment Thruster Advanced Heat Sink Experimental Sensor Array Seismic Detector Improved Weapon Shielding Hacking Suite Hacking Suite Hacking Suite Hacking Suite System Shield Relay Coupler [NC] (29) Relay Coupler [Swarmer] (29) Relay Coupler [Sentry] (17) Long-range Tractor Beam Improved Trap Extractor (2/6 Blade) Enhanced Autogun Improved Datajack Heavy Mace Peak State ------------ > --- POWER ------------ Light Angular Momentum Engine > --- PROPULSION ------- Compact Wheel Armored Wheel Armored Wheel Armored Wheel > --- UTILITY ---------- Advanced Heat Sink Huge Storage Unit Core Shielding Improved Propulsion Shielding > --- WEAPON ----------- Enhanced Autogun Enhanced Autogun > --- INVENTORY -------- Light Nuclear Core Improved VTOL Module Improved VTOL Module Improved VTOL Module Improved VTOL Module Improved VTOL Module Xenon Bombardment Thruster Structural Scanner Experimental Sensor Array Seismic Detector Improved Weapon Shielding Hacking Suite Hacking Suite Hacking Suite Hacking Suite System Shield Relay Coupler [NC] Relay Coupler [NC] Relay Coupler [Swarmer] Relay Coupler [Sentry] Long-range Tractor Beam Improved Trap Extractor Missile Launcher Improved Datajack Heavy Mace [Rating: 38] Favorites ----------- Power Cooled Ion Engine Engine Cooled Ion Engine Power Core Light Nuclear Core Propulsion Wheel Wheel Wheel Flight Unit Improved Flight Unit Utility Huge Storage Unit Device Seismic Detector Storage Huge Storage Unit Processor Signal Interpreter Hackware Relay Coupler [Grunt] Protection Core Shielding Weapon Improved Assault Rifle Energy Gun Particle Gun Energy Cannon Advanced Beam Cannon Ballistic Gun Improved Assault Rifle Launcher Missile Launcher Impact Weapon Heavy Mace Slashing Weapon Katana Special Melee Weapon Datajack Build | -11 -10 -10 -9 -9 -9 -8 -8 -8 -8 ------- Run | Scr Mat Min Mat Min Exi Min Mat Gar Mat Slots Evolved 4 | . . . 2 . . . 2 . . Power . | . . . . . . . . . . Propulsion 2 | . . . 2 . . . . . . Utility 2 | . . . . . . . 2 . . Weapon . | . . . . . . . . . . Parts Attached 336 | 9 20 19 49 6 6 3 107 43 74 Power 18 | 1 1 4 2 . 1 . 3 2 4 Engine 12 | 1 1 2 2 . 1 . 3 . 2 Core 6 | . . 2 . . . . . 2 2 Reactor . | . . . . . . . . . . Propulsion 66 | 3 5 3 14 1 . 2 22 10 6 Treads . | . . . . . . . . . . Leg . | . . . . . . . . . . Wheel 64 | 3 5 3 14 1 . 2 20 10 6 Hover . | . . . . . . . . . . Flight 2 | . . . . . . . 2 . . Utility 144 | 3 10 7 21 3 2 1 58 11 28 Device 73 | 2 6 3 7 3 . 1 32 6 13 Storage 3 | 1 1 . 1 . . . . . . Processor 5 | . 2 . 2 . . . 1 . . Hackware 8 | . . . . . . . 2 3 3 Protection 55 | . 1 4 11 . 2 . 23 2 12 Artifact . | . . . . . . . . . . Weapon 108 | 2 4 5 12 2 3 . 24 20 36 Energy Gun 3 | . . . . . . . 1 . 2 Energy Cannon 1 | . . . . . . . 1 . . Ballistic Gun 64 | 2 3 4 9 1 2 . 16 8 19 Ballistic Cannon . | . . . . . . . . . . Launcher 19 | . 1 1 3 . . . 3 3 8 Special Weapon . | . . . . . . . . . . Impact Weapon 8 | . . . . . . . 1 3 4 Slashing Weapon 3 | . . . . . . . . 3 . Piercing Weapon . | . . . . . . . . . . Special Melee Weapon 10 | . . . . 1 1 . 2 3 3 Unidentified Prototypes 10 | . . . 4 . . . 5 . 1 Parts Lost 41 | . 3 2 7 . . . 14 4 11 Power 2 | . 1 . . . . . . 1 . Propulsion 17 | . 1 1 4 . . . 6 1 4 Utility 11 | . . . 2 . . . 4 1 4 Weapon 11 | . 1 1 1 . . . 4 1 3 Highest Loss Streak 7 | . 1 1 2 . . . 7 2 6 To Critical Strikes . | . . . . . . . . . . Average Slot Usage (%) 96 | . 93 99 97 100 100 100 93 94 97 Engine 8 | . 12 9 9 11 11 11 9 5 5 Core 1 | . . 4 1 . . . . 3 3 Wheel 34 | . 27 27 41 44 44 44 31 32 34 Device 8 | . 7 1 2 11 9 11 13 11 8 Storage 10 | . 14 14 11 11 11 11 9 9 9 Protection 9 | . 1 12 7 . 1 . 13 9 16 Ballistic Gun 19 | . 27 28 21 19 12 22 16 14 14 Naked Turns . | . . . . . . . . . . Heaviest Build 111 | 11 88 95 101 101 101 95 109 111 106 Greatest Support 52 | 20 20 20 42 42 42 42 46 48 52 Greatest Overweight (x) 10 | 1 4 9 4 2 2 2 10 3 3 Average Overweight (x) 2 | . 2 4 2 2 2 2 2 2 1 Largest Inventory Capacity 25 | 8 25 25 25 25 25 25 25 25 25 Average Capacity 24 | 5 18 25 25 25 25 25 25 25 25 Most Carried 25 | 5 22 25 25 25 25 25 25 25 25 Average Carried 23 | 3 13 24 24 25 24 22 24 24 24 Final Capacity 25 | 8 25 25 25 25 25 25 25 25 25 Final Carried 25 | 5 21 25 25 25 25 24 25 25 23 Class Distribution -------------------- 50% | Scavenger-Mutant 36% | Mutant 13% | Bothacker-Mutant Dominant Class ---------------- Scavenger-Mutant | -10/Materials Scavenger-Mutant | -10/Mines Mutant | -9/Materials Mutant | -9/Mines Mutant | -9/Exiles Mutant | -8/Mines Scavenger-Mutant | -8/Materials Scavenger-Mutant | -8/Garrison Scavenger-Mutant | -8/Materials Resources | -11 -10 -10 -9 -9 -9 -8 -8 -8 -8 ----------- Run | Scr Mat Min Mat Min Exi Min Mat Gar Mat Matter Collected 8129 | 304 428 466 1601 111 . 138 2139 1006 1936 Remotely 38 | . . . . . . . . . 38 Salvage Created 10268 | 155 738 445 2514 55 . 121 2367 1287 2586 Parts 655 | 19 70 37 166 9 . 13 135 60 146 Haulers Intercepted 15 | . 2 . 4 . . . 5 . 4 Recyclers Shooed 6 | . . . 1 . . 1 1 . 3 Parts Field Recycled . | . . . . . . . . . . Retrieved Matter . | . . . . . . . . . . Parts Self-Destructed . | . . . . . . . . . . Prevented . | . . . . . . . . . . Kills | -11 -10 -10 -9 -9 -9 -8 -8 -8 -8 ------- Run | Scr Mat Min Mat Min Exi Min Mat Gar Mat Combat Hostiles Destroyed 188 | . 18 16 52 . . . 41 20 41 Melee 1 | . . . . . . . . 1 . Guns 148 | . 18 15 42 . . . 32 14 27 AOE 39 | . . 1 10 . . . 9 5 14 Classes Destroyed 15 | 3 6 1 4 . . . . 1 . Worker 29 | 2 1 1 6 2 . . 11 . 6 Builder 16 | . 3 1 4 1 . . 3 . 4 Tunneler 11 | 5 . . 2 . . 3 . . 1 Hauler 15 | . 2 . 4 . . . 5 . 4 Recycler 11 | 1 . . . . . 1 2 . 7 Mechanic 6 | . . . 1 . . . 3 . 2 Operator 6 | . 2 . 2 . . . 1 . 1 Watcher 12 | . 2 . 3 . . . 4 . 3 Swarmer 33 | . 9 9 4 . . . 11 . . Cutter 2 | . . . . . . . . 2 . Grunt 115 | . 9 5 39 . . . 22 14 26 Brawler 8 | . . . 1 . . . 2 1 4 Duelist 9 | . . . 3 . . . . 2 4 Protector 3 | . . . 1 . . . . . 2 Sentry 18 | . . 2 4 . . . 6 1 5 Best Kill Streak 8 | 7 7 4 8 2 . 2 8 3 7 Combat Bots Only 7 | . 6 4 7 . . . 7 3 5 Max Kills in Single Turn 3 | 1 2 1 3 1 . 1 3 2 2 Gunslinging 1 | . . . . . . . 1 . . Exploded 3 | . . 1 3 . . . 3 2 2 Melee 1 | . . . . . . . . 1 . Uniques/NPCs Destroyed . | . . . . . . . . . . Combat | -11 -10 -10 -9 -9 -9 -8 -8 -8 -8 -------- Run | Scr Mat Min Mat Min Exi Min Mat Gar Mat Damage Taken 7655 | . 456 504 1281 . . 72 2056 698 2588 Core 1094 | . 116 100 328 . . . 190 67 293 Absorbed by Shields 697 | . . . . . . . 414 146 137 Redirected to Shielding 202 | . 2 15 17 . . . 31 . 137 Regen/Repaired (Parts) 384 | . . . . . . . 108 . 276 Core Remaining (%) 43 | 100 . 13 . . . 18 . . . Volleys Fired 815 | 31 91 44 177 6 . 8 185 85 188 Largest 2 | 2 2 2 2 2 . 2 2 2 2 Hottest 90 | 40 40 43 46 46 . 46 53 48 90 Shots Fired 1526 | 59 181 85 341 12 . 16 348 154 330 Gun 1476 | 59 180 82 331 12 . 16 337 151 308 Cannon . | . . . . . . . . . . Launcher 50 | . 1 3 10 . . . 11 3 22 Special . | . . . . . . . . . . Kinetic 1459 | 59 180 82 331 12 . 16 337 151 291 Thermal 17 | . . . . . . . . . 17 Explosive 50 | . 1 3 10 . . . 11 3 22 Electromagnetic . | . . . . . . . . . . Robot Hit Streak 32 | 6 16 7 27 3 . 7 15 32 19 Robot Miss Streak 8 | 5 5 4 4 1 . 4 3 4 8 Penetration Max . | . . . . . . . . . . Secondary Targets 17 | . 1 3 6 . . . 3 2 2 Max Gunslinging Chain 1 | . 1 1 1 . . . 1 1 1 Shots Hit Robots 1060 | 37 108 50 242 7 4 9 245 151 207 Core Hits 507 | 14 54 26 105 3 . 5 124 52 124 Critical Kills 2 | . . 1 . . . . . . 1 Critical Parts Destroyed 8 | 1 1 1 2 . . . 2 . 1 Critical Strikes 14 | 1 1 2 2 . . . 2 3 3 Burn 1 | . . . . . . . . . 1 Destroy 10 | 1 1 2 2 . . . 2 . 2 Sever 3 | . . . . . . . . 3 . Melee Attacks 74 | . . . . 1 4 . 3 54 12 Impact 14 | . . . . . . . 3 4 7 Slashing 36 | . . . . . . . . 36 . Piercing . | . . . . . . . . . . Sneak Attacks 22 | . . . . 1 4 . . 12 5 Combat Hostiles 3 | . . . . . . . . 3 . Follow-up Attacks . | . . . . . . . . . . Damage Inflicted 21466 | 302 881 890 4682 88 . 143 5025 3328 6127 Guns 14325 | 302 881 677 3864 88 . 143 3699 1369 3302 Cannons . | . . . . . . . . . . Explosions 5446 | . . 213 804 . . . 1326 416 2687 Melee 1681 | . . . . . . . . 1543 138 Ramming 14 | . . . 14 . . . . . . Kinetic 14199 | 302 881 677 3864 88 . 143 3699 1369 3176 Thermal 126 | . . . . . . . . . 126 Explosive 5446 | . . 213 804 . . . 1326 416 2687 Electromagnetic . | . . . . . . . . . . Impact 138 | . . . . . . . . . 138 Slashing 1543 | . . . . . . . . 1543 . Piercing . | . . . . . . . . . . Highest Corruption 1 | . 1 1 . . . . . . . Average Corruption 1 | . 1 1 . . . . . . . Corruption Purged . | . . . . . . . . . . Corruption Blocked . | . . . . . . . . . . Effects 19 | . 10 9 . . . . . . . Message Errors 4 | . 4 . . . . . . . . Matter Fused 4 | . 1 3 . . . . . . . Heat Flow Errors 3 | . 2 1 . . . . . . . Energy Discharges 3 | . . 3 . . . . . . . Data Loss (minor) 2 | . 1 1 . . . . . . . Misfires 2 | . 2 . . . . . . . . Alerts 1 | . . 1 . . . . . . . Overload Shots . | . . . . . . . . . . Overflow Damage 255 | . . . . . . . 15 191 49 Projectiles . | . . . . . . . . . . Explosions 39 | . . . . . . . 15 . 24 Melee 216 | . . . . . . . . 191 25 Knockbacks 2 | . . . . . . . . . 2 Impact 2 | . . . . . . . . . 2 Kinetic . | . . . . . . . . . . Secondary . | . . . . . . . . . . Self-Inflicted Damage 115 | . . . 7 . . . . . 108 Shots 3 | . . . . . . . . . 3 Rammed 1 | . . . 1 . . . . . . Targets Rammed 1 | . . . 1 . . . . . . Kicked . | . . . . . . . . . . Crushed . | . . . . . . . . . . Highest Temperature 258 | . 257 258 112 . . . 247 38 127 Average Temperature 26 | . 48 46 17 . . . 22 11 27 Received Heat Transfer 3460 | . 174 219 552 . . . 1001 296 1218 Siege Activations . | . . . . . . . . . . Robots Corrupted . | . . . . . . . . . . Combat Hostiles . | . . . . . . . . . . Parts Fried . | . . . . . . . . . . Impact Corruptions 2 | . . . . . . . . . 2 Robots Melted . | . . . . . . . . . . Combat Hostiles . | . . . . . . . . . . Parts Melted 1 | . . . . . . . . 1 . Heat Transferred 361 | . . . . . . . . . 361 Parts Sabotaged . | . . . . . . . . . . Parts Stolen . | . . . . . . . . . . Parts Stripped . | . . . . . . . . . . Power Chain Reactions . | . . . . . . . . . . Missiles Intercepted . | . . . . . . . . . . Alert | -11 -10 -10 -9 -9 -9 -8 -8 -8 -8 ------- Run | Scr Mat Min Mat Min Exi Min Mat Gar Mat Peak Influence 1412 | 40 587 529 1412 545 . 40 771 1188 1315 Initial 579 | . 26 154 163 520 . . 15 492 579 Average 635 | 19 391 374 915 454 . 6 448 938 791 Maximum Alert Level 4 | . 2 2 4 2 . . 3 4 4 Low Security (%) 11 | 100 13 . 3 . . 100 19 . . Level 1 17 | . 26 62 14 44 . . 21 . . Level 2 30 | . 60 36 14 55 . . 36 10 39 Level 3 28 | . . . 27 . . . 22 58 52 Level 4 13 | . . . 39 . . . . 30 7 Level 5 . | . . . . . . . . . . High Security . | . . . . . . . . . . Max Security . | . . . . . . . . . . Sterilizations 1 | . . . 1 . . . . . . Squads Dispatched 34 | . 6 . 11 . . . 5 . 12 Investigation 16 | . 4 . 6 . . . 2 . 4 Extermination . | . . . . . . . . . . Reinforcement 7 | . 2 . 2 . . . 1 . 2 Assault 10 | . . . 3 . . . 2 . 5 Garrison 1 | . . . . . . . . . 1 Intercept . | . . . . . . . . . . Searches Triggered . | . . . . . . . . . . Construction Impeded . | . . . . . . . . . . Haulers Reinforced . | . . . . . . . . . . Active Scanning Responses . | . . . . . . . . . . Cargo Convoy Interrupts . | . . . . . . . . . . Stealth | -11 -10 -10 -9 -9 -9 -8 -8 -8 -8 --------- Run | Scr Mat Min Mat Min Exi Min Mat Gar Mat Distress Signals 12 | . 2 . 5 1 . . 3 . 1 Communications Jammed . | . . . . . . . . . . Distress Signals . | . . . . . . . . . . Times Spotted 302 | . 32 24 76 . . 5 63 27 75 Peak Tracking Total 9 | . 5 5 9 . . 4 6 3 7 Tactical Retreats 15 | . 2 3 2 . . 1 2 2 3 Traps | -11 -10 -10 -9 -9 -9 -8 -8 -8 -8 ------- Run | Scr Mat Min Mat Min Exi Min Mat Gar Mat Traps Triggered 14 | . 2 . 4 . . . 3 4 1 Indirectly . | . . . . . . . . . . Trap Hack Attempts 29 | . . . . 4 . . 25 . . Triggered . | . . . . . . . . . . Disarmed 3 | . . . . . . . 3 . . Reprogrammed 3 | . . . . 1 . . 2 . . Reused 4 | . . . 3 . . . 1 . . Traps Extracted 3 | . . . . 1 . . 2 . . Installed 4 | . . . 3 . . . 1 . . Triggered 4 | . . . 3 . . . 1 . . Most Traps Carried 3 | . . 3 3 1 1 1 2 2 2 Exploded 3 | . . . . . . 3 . . . Machines | -11 -10 -10 -9 -9 -9 -8 -8 -8 -8 ---------- Run | Scr Mat Min Mat Min Exi Min Mat Gar Mat Machines Disabled 21 | . . 1 3 1 . . 5 4 7 Max in Single Turn 2 | . . 1 2 1 . . 1 1 1 Garrison Relay 4 | . . . . . . . . 4 . Machines Sabotaged . | . . . . . . . . . . Garrisons Compromised . | . . . . . . . . . . Overloaded Fab Kills . | . . . . . . . . . . Hacking | -11 -10 -10 -9 -9 -9 -8 -8 -8 -8 --------- Run | Scr Mat Min Mat Min Exi Min Mat Gar Mat Machines Accessed 49 | . 8 . 12 1 1 . 16 . 11 Terminals 30 | . 6 . 7 . . . 11 . 6 Fabricators . | . . . . . . . . . . Repair Stations 4 | . . . 1 . . . 1 . 2 Recycling Units 8 | . 2 . 2 . . . 2 . 2 Scanalyzers 4 | . . . 2 . . . 1 . 1 Garrison Access 1 | . . . . . . . 1 . . Total Hacks 155 | . 23 . 33 1 1 . 51 . 46 Successful 98 | . 14 . 22 1 1 . 35 . 25 Failed 56 | . 8 . 11 . . . 16 . 21 Catastrophic 6 | . 3 . 1 . . . 1 . 1 Database Lockouts 1 | . 1 . . . . . . . . Manual 104 | . 22 . 19 . . . 41 . 22 Terminals 100 | . 19 . 18 . . . 36 . 27 Fabricators . | . . . . . . . . . . Repair Stations 16 | . . . 5 . . . 2 . 9 Recycling Units 22 | . 4 . 4 . . . 8 . 6 Scanalyzers 14 | . . . 6 . . . 4 . 4 Garrison Access 1 | . . . . . . . 1 . . Terminal Hacks 25 | . 3 . 4 1 1 . 9 . 7 Record 1 | . . . . . 1 . . . . Robot Analysis 13 | . 3 . 4 . . . 5 . 1 Prototype ID Bank 1 | . . . . . . . . . 1 Open Door 1 | . . . . 1 . . . . . Terminal Index 2 | . . . . . . . 1 . 1 Unreport Threat 3 | . . . . . . . 1 . 2 Locate Traps 3 | . . . . . . . 2 . 1 Hauler Manifests 1 | . . . . . . . . . 1 Fabricator Hacks . | . . . . . . . . . . Repair Station Hacks 11 | . . . 2 . . . 2 . 7 Scan Component 7 | . . . 2 . . . 1 . 4 Repair 4 | . . . . . . . 1 . 3 Recycling Unit Hacks 6 | . 2 . 2 . . . 2 . . Retrieve Components 6 | . 2 . 2 . . . 2 . . Scanalyzer 13 | . . . 5 . . . 4 . 4 Insert Component 7 | . . . 3 . . . 2 . 2 Analyze 6 | . . . 2 . . . 2 . 2 Garrison Access Hacks 1 | . . . . . . . 1 . . Unlock Access 1 | . . . . . . . 1 . . Unauthorized Hacks 42 | . 9 . 9 . . . 17 . 7 Terminals 32 | . 7 . 7 . . . 12 . 6 Track 1 | . . . 1 . . . . . . Assimilate 3 | . . . 1 . . . 2 . . Botnet 25 | . 6 . 5 . . . 9 . 5 Operators 3 | . 1 . . . . . 1 . 1 Fabricators . | . . . . . . . . . . Repair Stations . | . . . . . . . . . . Recycling Units 10 | . 2 . 2 . . . 5 . 1 Reject 1 | . . . . . . . 1 . . Recyclers 2 | . . . . . . . 2 . . Mask 2 | . . . . . . . 2 . . Tunnel 5 | . 2 . 2 . . . . . 1 Scanalyzers . | . . . . . . . . . . Garrison Access . | . . . . . . . . . . Data Cores Recovered . | . . . . . . . . . . Used . | . . . . . . . . . . Hacking Detections 41 | . 7 . 10 . . . 14 . 10 Full Trace Events 15 | . 6 . 3 . . . 2 . 4 Feedback Events 1 | . 1 . . . . . . . . Corruption 1 | . 1 . . . . . . . . Feedback Blocked . | . . . . . . . . . . Robot Schematics Acquired . | . . . . . . . . . . Robots Built . | . . . . . . . . . . Authchips . | . . . . . . . . . . Time . | . . . . . . . . . . Total Robot Build Rating . | . . . . . . . . . . Part Schematics Acquired 5 | . . . 1 . . . 2 . 2 Parts Built . | . . . . . . . . . . Authchips . | . . . . . . . . . . Time . | . . . . . . . . . . Total Part Build Rating . | . . . . . . . . . . Parts Repaired 4 | . . . . . . . 1 . 3 Time 147 | . . . . . . . 51 . 96 Parts Recycled . | . . . . . . . . . . Recycled Matter . | . . . . . . . . . . Retrieved Matter . | . . . . . . . . . . Retrieved Components 32 | . 9 . 11 . . . 12 . . Parts Scanalyzed 5 | . . . 2 . . . 1 . 2 Part Schematics Acquired 5 | . . . 1 . . . 2 . 2 Parts Damaged 1 | . . . . . . . . . 1 Bothacking | -11 -10 -10 -9 -9 -9 -8 -8 -8 -8 ------------ Run | Scr Mat Min Mat Min Exi Min Mat Gar Mat Used RIF Installer 1 | . . . . . . . . 1 . Robots Hacked 15 | . . . . . 4 . . 7 4 Non-combat 6 | . . . . . 3 . . . 3 Combat 9 | . . . . . 1 . . 7 1 Robot Hacks Applied 15 | . . . . . 4 . . 7 4 parse_system 4 | . . . . . 4 . . . . start_evac 1 | . . . . . . . . . 1 randomize_corridors 1 | . . . . . . . . . 1 disable_weapons 1 | . . . . . . . . 1 . overwrite_iff 1 | . . . . . . . . 1 . formatsys_low 1 | . . . . . . . . . 1 formatsys_high 6 | . . . . . . . . 5 1 Relay Couplers Released 18 | . . . . . . . . 18 . Machine Destruction 18 | . . . . . . . . 18 . Attached 5 | . . . . . . . . 3 2 Fabnet Peak Effective % . | . . . . . . . . . . Robots Rewired . | . . . . . . . . . . Allies Hacked . | . . . . . . . . . . Hacks Repelled . | . . . . . . . . . . Allies | -11 -10 -10 -9 -9 -9 -8 -8 -8 -8 -------- Run | Scr Mat Min Mat Min Exi Min Mat Gar Mat Total Allies 12 | . . 3 . . . . 1 6 2 Largest Group 3 | . . 3 . . . . 1 3 2 Highest-Rated Group 48 | . . 40 . . . . 10 48 37 Highest-Rated Ally 21 | . . 16 . . . . 10 16 21 Total Orders 5 | . . . . . . . . 3 2 STAY 2 | . . . . . . . . 1 1 FOLLOW 3 | . . . . . . . . 2 1 Ally Attacks 78 | . . 18 . . . . . 33 27 Total Damage 1053 | . . 137 . . . . . 376 540 Kills 11 | . . 4 . . . . . 2 5 Allies Corrupted . | . . . . . . . . . . Allies Melted . | . . . . . . . . . . Intel | -11 -10 -10 -9 -9 -9 -8 -8 -8 -8 ------- Run | Scr Mat Min Mat Min Exi Min Mat Gar Mat Robot Analysis Total 13 | . 3 . 4 . . . 5 . 1 Derelict Logs Recovered 2 | . . 2 . . . . . . . Drone Launches . | . . . . . . . . . . Drone Recoveries . | . . . . . . . . . . Exploration | -11 -10 -10 -9 -9 -9 -8 -8 -8 -8 ------------- Run | Scr Mat Min Mat Min Exi Min Mat Gar Mat Turns Passed 14614 | 137 1329 1138 2590 721 317 562 3168 2206 2446 Spaces Moved 8941 | 59 856 677 1513 476 267 373 1912 1394 1414 Core 35 | 35 . . . . . . . . . Treads . | . . . . . . . . . . Legs . | . . . . . . . . . . Wheels 8906 | 24 856 677 1513 476 267 373 1912 1394 1414 Hover . | . . . . . . . . . . Flight . | . . . . . . . . . . Fastest Speed 50 | 50 80 140 110 112 112 112 110 110 105 Average Speed 117 | 64 114 141 113 112 112 112 117 121 117 Slowest Speed 230 | 95 140 215 145 112 112 112 230 125 131 Overloaded Moves . | . . . . . . . . . . Propulsion Burnouts . | . . . . . . . . . . Robots Hopped . | . . . . . . . . . . Cave-ins Triggered . | . . . . . . . . . . Exploration Rate (%) 77 | 3 98 99 97 89 62 67 90 88 83 Regions Visited 9 Branch Regions 4 Pre-discovered Areas 7 | . 2 . 2 1 1 . . . 1 Known Exits Taken 5 | . 1 1 1 . . 1 1 . . Unknown Exits Taken 3 | 1 . . . 1 1 . . . . Scrap Searched 4 | . . 1 . 2 . 1 . . . Spaces Dug 7 | . . . . . . . 3 . 4 Terrain Destroyed 311 | . 8 25 53 . . . 58 8 159 Melee 7 | . . . . . . . 3 . 4 Projectile 1 | . . . . . . . 1 . . AOE 303 | . 8 25 53 . . . 54 8 155 Terrain Rammed . | . . . . . . . . . . Walls Destroyed . | . . . . . . . . . . Machines Disabled . | . . . . . . . . . . Actions | -11 -10 -10 -9 -9 -9 -8 -8 -8 -8 --------- Run | Scr Mat Min Mat Min Exi Min Mat Gar Mat Total 11552 | 108 1064 774 2058 654 282 501 2467 1719 1925 Wait 1037 | . 62 12 263 153 . 115 150 71 211 Move 8933 | 58 855 676 1512 475 266 372 1912 1393 1414 Hop . | . . . . . . . . . . Pick Up 131 | 8 22 10 20 4 3 . 35 22 7 Fast Attach 59 | 4 3 4 8 . . . 24 3 13 Attach 47 | 3 7 1 8 . 2 . 13 6 7 Detach 20 | . 5 1 4 . . . 5 1 4 Swap 231 | 2 10 14 34 6 4 3 70 34 54 Drop 147 | 2 9 12 28 5 3 3 44 26 15 Fire 815 | 31 91 44 177 6 . 8 185 85 188 Melee 74 | . . . . 1 4 . 3 54 12 Ram 1 | . . . 1 . . . . . . Kick . | . . . . . . . . . . Crush . | . . . . . . . . . . Escape Stasis 24 | . . . . . . . . 24 . Rewire . | . . . . . . . . . . Trap 33 | . . . 3 4 . . 26 . . Miscellaneous . | . . . . . . . . . . Route ------- -11/Scrapyard -10/Materials (discovered 5 exits: *Mat x3 / *Min x2) -10/Mines (discovered 2 exits: *Mat x2) -9/Materials (discovered 4 exits: *Mat x3 / *Min) -9/Mines (discovered 3 exits: *Mat x2 / *Exi) -9/Exiles -8/Mines (discovered 2 exits: *Mat x2) -8/Materials (discovered 5 exits: *Fac x3 / Sto / Gar) -8/Garrison (discovered 3 exits: *Mat x3) -8/Materials (discovered 2 exits: *Fac x2) History --------- Turn | Location | Event 12 | -11/Scrapyard | Discovered new exit (range 16) 138 | -11/Scrapyard | Entered Materials 149 | -10/Materials | Discovered new exit (range 14) 317 | -10/Materials | Build established: Mutant 396 | -10/Materials | Discovered new exit (range 11) 476 | -10/Materials | Identified exit to Materials 571 | -10/Materials | Discovered new exit (range 6) 580 | -10/Materials | Identified exit to Mines 770 | -10/Materials | Discovered exit to Materials (range 9) 1017 | -10/Materials | Discovered exit to Materials (range 11) 1036 | -10/Materials | Build established: Scavenger-Mutant 1138 | -10/Materials | Central database locked down 1467 | -10/Materials | Entered Mines 1478 | -10/Mines | Core integrity fell below 50% 1846 | -10/Mines | Found a hidden stash of uninstalled traps 1990 | -10/Mines | Learned Materials security intel 2098 | -10/Mines | Discovered exit to Materials (range 12) 2137 | -10/Mines | Assisted by bots powering up and referring to "LRC-V3" 2176 | -10/Mines | A weapon hastily lodged in a ceiling crevice suddenly fell to the ground 2267 | -10/Mines | Core integrity fell below 20% 2272 | -10/Mines | Discovered exit to Materials (range 10) 2403 | -10/Mines | Found a damaged Exp. Sensor Array with a note attached 2408 | -10/Mines | Found Prototype Device 2605 | -10/Mines | Entered Materials 2605 | -9/Materials | Evolved 2 slots: Propulsion x2 3199 | -9/Materials | Identified Exp. Sensor Array 3211 | -9/Materials | Discovered new exit (range 12) 3535 | -9/Materials | Discovered new exit (range 16) 3554 | -9/Materials | Identified exit to Materials 3681 | -9/Materials | Identified exit to Mines 3726 | -9/Materials | Core integrity fell below 50% 3805 | -9/Materials | First assault squad dispatched 3997 | -9/Materials | Discovered exit to Materials (range 15) 4187 | -9/Materials | Discovered exit to Materials (range 10) 4289 | -9/Materials | Sterilization system engaged 4289 | -9/Materials | Non-combat units ordered to evacuate 4299 | -9/Materials | Core integrity fell below 20% 4300 | -9/Materials | Destroyed 7 combat bots 4389 | -9/Materials | Combat units ordered to evacuate 4458 | -9/Materials | Build established: Mutant 4589 | -9/Materials | Ambient heat levels rising (+10) 4739 | -9/Materials | Ambient heat levels rising (+10) 4889 | -9/Materials | Ambient heat levels rising (+10) 5039 | -9/Materials | Ambient heat levels rising (+10) 5189 | -9/Materials | Ambient heat levels rising (+10) 5195 | -9/Materials | Entered Mines 5195 | -9/Mines | Discovered exit to Materials (range 13) 5213 | -9/Mines | Assembled infested the area 5420 | -9/Mines | Met a Derelict who couldn't figure out how to use a Trap Extractor 5516 | -9/Mines | Discovered exit to Materials (range 7) 5912 | -9/Mines | Deemed a non-threat by the Exiles lab entrance 5912 | -9/Mines | Discovered new exit (range 5) 5916 | -9/Mines | Entered Exiles 5946 | -9/Exiles | Met 8R-AWN 5968 | -9/Exiles | Met EX-HEX 6016 | -9/Exiles | Met EX-DEC 6049 | -9/Exiles | Learned location of Zion (-6) 6124 | -9/Exiles | Met EX-BIN 6217 | -9/Exiles | Discovered new exit (range 14) 6233 | -9/Exiles | Entered Mines 6291 | -8/Mines | Discovered exit to Materials (range 12) 6687 | -8/Mines | Discovered exit to Materials (range 7) 6795 | -8/Mines | Entered Materials 6795 | -8/Materials | Evolved 2 slots: Utility x2 6796 | -8/Materials | Identified exit to Storage 6883 | -8/Materials | Repaired Imp. Assault Rifle 7457 | -8/Materials | Destroyed 7 combat bots 7740 | -8/Materials | Lost 7 parts (3n2u2w) 8039 | -8/Materials | Discovered new exit (range 16) 8057 | -8/Materials | Identified exit to Factory 8228 | -8/Materials | Build established: Scavenger-Mutant 8496 | -8/Materials | Lost 3 parts (1n2w) 8528 | -8/Materials | Discovered exit to Factory (range 3) 8795 | -8/Materials | First assault squad dispatched 8886 | -8/Materials | Lost 3 parts (1n2u) 8933 | -8/Materials | Discovered exit to Factory (range 15) 9963 | -8/Materials | Identified exit to Garrison 9963 | -8/Materials | Entered Garrison 9969 | -8/Garrison | Installed Relay Interface Framework 9977 | -8/Garrison | Triggered checkpoint 10158 | -8/Garrison | Triggered checkpoint 10193 | -8/Garrison | Garrison Relay disabled 10427 | -8/Garrison | Triggered checkpoint 10512 | -8/Garrison | Discovered new exit (range 13) 10571 | -8/Garrison | Triggered checkpoint 10594 | -8/Garrison | Garrison Relay disabled 10676 | -8/Garrison | Triggered checkpoint 11026 | -8/Garrison | Triggered checkpoint 11092 | -8/Garrison | Triggered checkpoint 11153 | -8/Garrison | Garrison Relay disabled 11248 | -8/Garrison | Discovered new exit (range 10) 11407 | -8/Garrison | Discovered new exit (range 10) 11421 | -8/Garrison | Triggered checkpoint 11446 | -8/Garrison | Build established: Bothacker-Mutant 11491 | -8/Garrison | Garrison Relay disabled 11556 | -8/Garrison | Triggered checkpoint 12169 | -8/Garrison | Entered Materials 12169 | -8/Materials | Accompanied by 2 allies 12405 | -8/Materials | Discovered exit to Factory (range 9) 12475 | -8/Materials | Repaired Hrd. Medium Armor Plating 12506 | -8/Materials | Core integrity fell below 50% 12661 | -8/Materials | Build established: Scavenger-Mutant 12965 | -8/Materials | Discovered exit to Factory (range 11) 12969 | -8/Materials | First assault squad dispatched 13076 | -8/Materials | Core integrity fell below 20% 13102 | -8/Materials | Lost 6 parts (1n3u2w) 13306 | -8/Materials | Repaired Core Shielding 13339 | -8/Materials | Repaired Arm. Wheel 13755 | -8/Materials | Garrison activated, responded to threat 13919 | -8/Materials | Build established: Bothacker-Mutant 14615 | -8/Materials | Destroyed by G-47 Trooper with Particle Gun Last Messages --------------- 14598_ Hrd. Light Armor Plating destroyed. 14598_ U-05 Engineer builds a Wall. 14598_ U-05 Engineer lays Concrete. 14599_ U-05 Engineer builds a Wall. 14599_ U-05 Engineer lays Concrete. 14600_ Wheel destroyed. 14600_ K-01 Serf collects debris. 14601_ U-05 Engineer builds a Wall. 14602_ K-01 Serf collects debris. 14602_ U-05 Engineer builds a Wall. 14604_ The unstable cave ceiling collapses. 14604_ Wheel crushed. 14604_ C-30 ARC bursts open, deploying its payload. 14604_ G-50 Soldier unfolds itself. 14604_ G-47 Trooper unfolds itself. 14605_ U-05 Engineer lays Concrete. 14606_ K-01 Serf collects debris. 14606_ U-05 Engineer lays Concrete. 14607_ Enh. Autogun destroyed. 14607_ U-05 Engineer lays Concrete. Map ----- +----------------------------------------------------+ | ??????# # """""#?# [! | | ??????# # """""#?# ? % =/ | | ??????# # """""#?######? !*=%!%* | | ??????# + """""????????? [ % #### !### | | ??????# # """""????????? % ????###+###?? | | ????### #! """""????????## ????? !??? | | ????# # """"?????????## ##??# """ !! ? | | ????# #### ?????????## ##??# """ ! # | | ????# #??#########????????## ##??# """ # | | ????# #???????????????????## ##??# % # | | ????# #???????????????????## ##??# """ # | | ????# #???????????????????## ##??# """ # | | ????# #???????????????????## ##??????? # | | ????# #?###########???????## ##????? # | | ????# #?# ########## ##?????####### | | ????# #?# """ """ ########## #####??## | | ????# #?# """ """ # ### #####??## "" | | ????# #?# """ """ # "" ### # ##??## "" | | ????# #?# """ """ # """ # # !## ###### "" | | ????# ### # S" ### = ##%###### | | # ** ## ! | | ???## + # # # ! ### ##### " | | ????# #######+######+ u##### ==### ##### " | | ????# #?## * # # ##?## | | ????# #?## < = g ### ##?####### | | ????# #?## " @!=! gg ### ##?####### | | ????#+######## != #### #### ##???????? | | ????# # =![ [# * ## ###??????? | | ????#! """ # * ![| # %# ### ###??????? | | ????# """"" # ! !ug# " ##??????? | | ????# """"" # % = % "%" ##??????? | | ????# """""%+ = m % ##??????? | | ????# """ # ##??????? | | ????# ! # ###### ##??????? | | ????# "Y # ## #### #+ ######???? | | ????# """ # ## #### # % #???? | | ????##+####### ## #?## /= # ##### | | ?????#?####### # ##?## /= = # + | | ?????# ###??## = # # | | ?????# ####### ##???## # """ """ ####? | | ?????????##### ############## """ """ ####? | | ?#####+### # ## ######### """ """ ##??? | | # ## # ## #??????## ##??? | | ? " ## # ## #??????############???? | | #""" ## # ## #???????###?####??????? | | #""" ## # ## ############??????????? | | #""" ## # # ## #??????????# | | # "" ## # ## ! """ #??????????# | | #""" ###+## ##+###! "R" #??????????# | | #"" " # " " #????####### | +----------------------------------------------------+ Best States ------------- Heat Dissipation 64 Energy Generation 18 Energy Capacity 280 Matter Stores 300 Matter Capacity 300 Sight Range 16 Terrain Scan Density 10 Armor Coverage 450 Core Shielding 20 Propulsion Shielding 66 Weapon Shielding 33 Evasion (%) 50 Offensive Hacking 10 Defensive Hacking 10 Relay Coupler Types 1 Relay Coupler Value 33 Trap Extractor Capacity 6 Item Schematics ----------------- Hacking Suite | -9/Materials | Scanalyzed System Shield | -8/Materials | Scanalyzed Exp. Sensor Array | -8/Materials | Scanalyzed Lrn. Tractor Beam | -8/Materials | Scanalyzed Arm. Wheel | -8/Materials | Scanalyzed Robot Schematics ------------------ None Fabricated ------------ Nothing Alien Tech Used ----------------- None Achievements -------------- None Challenges ------------ None Game ------ Seed ArcTransmissionChronowheel Manual? 0 Play Time 02:23:31 Cumulative 641.7 hours Start 2022.06.23 @ 10:41:43 End 2022.06.23 @ 13:10:11 Sessions 1 Manual Loads 0 Difficulty Rogue Special Mode None Game No. 514 Rogue 514 Adventurer 0 Explorer 0 Win Type - Total 8 Types 7/0/0/1/0/0/0/0/0 Lore% 74 Gallery% 86 Achievement% 68 Wizard Run 0 Options --------- ASCII 0 Keyboard 1 Movement Numpad Keybinds 0 Fullscreen 1 Font 12/Terminus Map View 83x54 Tactical HUD 1 Map Filters NONE Filters NONE Steam 1 RUN: 9f2ecb3d-4fc5-4f53-a60f-e8180457afc1